fUSD/lending_fUSD_20250112
["ID","MTS","AMOUNT","RATE_DAILY","PERIOD"]
[348600889,1736664663050,-963.18,0.00010619,2]
[348600890,1736664663059,-500.0,0.00010619,2]
[348600891,1736664663069,-500.0,0.00010619,2]
[348600892,1736664663079,-1070.9,0.00010619,2]
[348600893,1736664663088,-536.18,0.00010619,2]
[348600894,1736664663097,-500.0,0.00010619,2]
[348600895,1736664663106,-774.11,0.00010619,2]
[348600896,1736664663116,-500.0,0.00010619,2]
[348600897,1736664663126,-500.0,0.00010619,2]
[348600898,1736664663135,-500.0,0.00010619,2]
[348600899,1736664663145,-500.0,0.00010619,2]
[348600900,1736664663154,-500.0,0.00010619,2]
[348600901,1736664663163,-1118.47,0.00010619,2]
[348600902,1736664663172,-500.0,0.00010619,2]
[348600903,1736664663181,-500.0,0.00010619,2]
[348600904,1736664663190,-500.0,0.00010619,2]
[348600905,1736664663199,-500.0,0.00010619,2]
[348600906,1736664663208,-500.0,0.00010619,2]
[348600907,1736664663217,-500.0,0.00010619,2]
[348600908,1736664663226,-500.0,0.00010619,2]
[348600909,1736664663235,-907.73,0.00010619,2]
[348600910,1736664663245,-579.44,0.00010619,2]
[348600911,1736664663255,-500.0,0.00010619,2]
[348600912,1736664663264,-500.0,0.00010619,2]
[348600913,1736664663273,-979.31,0.00010619,2]
[348600914,1736664663282,-794.38,0.00010619,2]
[348600915,1736664663291,-500.0,0.00010619,2]
[348600916,1736664663300,-500.0,0.00010619,2]
[348600917,1736664663312,-536.53,0.00010619,2]
[348600918,1736664663322,-767.51,0.00010619,2]
[348600919,1736664663331,-941.36,0.00010619,2]
[348600920,1736664663341,-530.16,0.00010619,2]
[348600921,1736664663350,-838.4,0.00010619,2]
[348600922,1736664663360,-500.0,0.00010619,2]
[348600923,1736664663369,-644.62,0.00010619,2]
[348600924,1736664663379,-787.08,0.00010619,2]
[348600925,1736664663391,-1673.52,0.00010619,2]
[348600926,1736664663401,-751.08,0.00010619,2]
[348600927,1736664663411,-500.0,0.00010619,2]
[348600928,1736664663420,-1047.84,0.00010619,2]
[348600929,1736664663430,-601.24,0.00010619,2]
[348600930,1736664663439,-1068.86,0.00010619,2]
[348600931,1736664663449,-500.0,0.00010619,2]
[348600932,1736664663458,-576.26,0.00010619,2]
[348600933,1736664663468,-5257.85,0.00010619,2]
[348600934,1736664663477,-559.88,0.00010619,2]
[348600935,1736664663487,-1084.38,0.00010619,2]
[348600936,1736664663496,-500.0,0.00010619,2]
[348600937,1736664663505,-760.69,0.00010619,2]
[348600938,1736664663515,-568.9,0.00010619,2]
[348600939,1736664663524,-3254.33,0.00010619,2]
[348600940,1736664663533,-1239.06,0.00010619,2]
[348600941,1736664663543,-3894.03,0.00010619,2]
[348600942,1736664663552,-500.0,0.00010619,2]
[348600943,1736664663562,-500.0,0.00010619,2]
[348600944,1736664663571,-675.02,0.00010619,2]
[348600945,1736664663580,-619.14,0.00010619,2]
[348600946,1736664663590,-748.84,0.00010619,2]
[348600947,1736664663600,-684.35,0.00010619,2]
[348600948,1736664663610,-3424.7,0.00010619,2]
[348600949,1736664663619,-501.81,0.00010619,2]
[348600950,1736664663629,-500.0,0.0001062,2]
[348600951,1736664663639,-500.0,0.0001062,2]
[348600952,1736664663648,-554.75,0.0001062,2]
[348600953,1736664663658,-500.0,0.0001062,2]
[348600954,1736664663668,-500.0,0.0001062,2]
[348600955,1736664663677,-500.0,0.0001062,2]
[348600956,1736664663686,-500.0,0.0001062,2]
[348600957,1736664663696,-500.0,0.0001062,2]
[348600958,1736664663705,-500.0,0.0001062,2]
[348600959,1736664663717,-514.38615332,0.0001062,2]
[348600960,1736664663734,-556.88,0.0001062,2]
[348600961,1736664663744,-500.0,0.0001062,2]
[348600962,1736664663754,-500.0,0.0001062,2]
[348600963,1736664663763,-500.0,0.0001062,2]
[348600964,1736664663773,-586.89,0.0001062,2]
[348600965,1736664663782,-500.0,0.0001062,2]
[348600966,1736664663791,-622.31,0.0001062,2]
[348600967,1736664663801,-500.0,0.0001062,2]
[348600968,1736664663810,-500.0,0.0001062,2]
[348600969,1736664663819,-500.0,0.0001062,2]
[348600970,1736664663829,-500.0,0.0001062,2]
[348600971,1736664663838,-500.0,0.0001062,2]
[348600972,1736664663847,-500.0,0.0001062,2]
[348600973,1736664663857,-500.0,0.0001062,2]
[348600974,1736664663866,-502.08190988,0.0001062,2]
[348600975,1736664663875,-500.0,0.0001062,2]
[348600976,1736664663885,-500.0,0.0001062,2]
[348600977,1736664663895,-546.49,0.0001062,2]
[348600978,1736664663904,-500.0,0.0001062,2]
[348600979,1736664663914,-500.0,0.0001062,2]
[348600980,1736664663923,-500.0,0.0001062,2]
[348600981,1736664663933,-838.7,0.0001062,2]
[348600982,1736664663942,-500.0,0.0001062,2]
[348600983,1736664663951,-500.0,0.0001062,2]
[348600984,1736664663960,-780.02,0.0001062,2]
[348600985,1736664663970,-500.0,0.0001062,2]
[348600986,1736664663979,-500.0,0.0001062,2]
[348600987,1736664663989,-500.0,0.0001062,2]
[348600988,1736664663999,-500.0,0.0001062,2]
[348600989,1736664664009,-500.0,0.0001062,2]
[348600990,1736664664018,-931.1,0.0001062,2]
[348600991,1736664664027,-795.37,0.0001062,2]
[348600992,1736664664036,-542.74,0.0001062,2]
[348600993,1736664664045,-806.97,0.0001062,2]
[348600994,1736664664055,-500.0,0.0001062,2]
[348600995,1736664664064,-661.93,0.0001062,2]
[348600996,1736664664074,-886.02,0.0001062,2]
[348600997,1736664664083,-500.0,0.0001062,2]
[348600998,1736664664092,-500.0,0.0001062,2]
[348600999,1736664664102,-623.08,0.0001062,2]
[348601000,1736664664111,-607.44,0.0001062,2]
[348601001,1736664664120,-500.0,0.0001062,2]
[348601002,1736664664129,-500.0,0.0001062,2]
[348601003,1736664664138,-500.0,0.0001062,2]
[348601004,1736664664147,-502.6570675,0.0001062,7]
[348601005,1736664664156,-500.0,0.0001062,2]
[348601006,1736664664165,-172.18270122,0.0001062,2]
[348601007,1736664664174,-594.42,0.0001062,2]
[348601008,1736664664183,-500.0,0.0001062,2]
[348601009,1736664664192,-500.0,0.0001062,2]
[348601010,1736664664201,-537.5,0.0001062,2]
[348601011,1736664664210,-500.0,0.0001062,2]
[348601012,1736664664221,-535.6,0.0001062,2]
[348601013,1736664664233,-553.91,0.0001062,2]
[348601014,1736664664242,-500.0,0.0001062,2]
[348601015,1736664664252,-500.0,0.0001062,2]
[348601016,1736664664261,-602.95,0.0001062,2]
[348601017,1736664664271,-666.31,0.0001062,2]
[348601018,1736664664280,-950.48,0.0001062,2]
[348601019,1736664664290,-395.94971135,0.0001062,2]
[348601020,1736664664299,-500.0,0.0001062,2]
[348601021,1736664664312,-500.0,0.0001062,2]
[348601022,1736664664322,-500.0,0.0001062,2]
[348601023,1736664664331,-638.03,0.0001062,2]
[348601024,1736664664340,-972.53,0.0001062,2]
[348601025,1736664664350,-594.76,0.0001062,2]
[348601026,1736664664360,-500.0,0.0001062,2]
[348601027,1736664664370,-500.0,0.0001062,2]
[348601028,1736664664379,-500.0,0.0001062,2]
[348601029,1736664664390,-703.92,0.0001062,2]
[348601030,1736664664399,-510.69986738,0.0001062,2]
[348601031,1736664664408,-500.0,0.0001062,2]
[348601032,1736664664417,-500.0,0.0001062,2]
[348601033,1736664664426,-794.4,0.0001062,2]
[348601034,1736664664436,-544.91,0.0001062,2]
[348601035,1736664664445,-500.0,0.0001062,2]
[348601036,1736664664455,-839.28,0.0001062,2]
[348601037,1736664664465,-500.0,0.0001062,2]
[348601038,1736664664474,-500.0,0.0001062,2]
[348601039,1736664664484,-643.83,0.0001062,2]
[348601040,1736664664495,-725.9,0.0001062,2]
[348601041,1736664664504,-500.0,0.0001062,2]
[348601042,1736664664514,-671.5,0.0001062,2]
[348601043,1736664664523,-566.3,0.0001062,2]
[348601044,1736664664532,-471.411506,0.0001062,2]
[348601045,1736664664542,-500.0,0.0001062,2]
[348601046,1736664664551,-500.0,0.0001062,2]
[348601047,1736664664560,-500.0,0.0001062,2]
[348601048,1736664664729,-513.25,0.0001062,2]
[348601049,1736664664740,-500.0,0.0001062,2]
[348601050,1736664664750,-805.15,0.0001062,2]
[348601051,1736664664759,-500.0,0.0001062,2]
[348601052,1736664664769,-534.59,0.0001062,2]
[348601053,1736664664779,-766.63,0.0001062,2]
[348601054,1736664664788,-500.0,0.0001062,2]
[348601055,1736664664798,-500.0,0.0001062,2]
[348601056,1736664664807,-572.03,0.0001062,2]
[348601057,1736664664817,-609.26,0.0001062,2]
[348601058,1736664664826,-500.0,0.0001062,2]
[348601059,1736664664835,-500.0,0.0001062,2]
[348601060,1736664664845,-853.69,0.0001062,2]
[348601061,1736664664855,-828.29,0.0001062,2]
[348601062,1736664664864,-500.0,0.0001062,2]
[348601063,1736664664873,-500.0,0.0001062,2]
[348601064,1736664664883,-952.86,0.0001062,2]
[348601065,1736664664892,-1074.48,0.0001062,2]
[348601066,1736664664903,-500.0,0.0001062,2]
[348601067,1736664664913,-500.0,0.0001062,2]
[348601068,1736664664922,-500.0,0.0001062,2]
[348601069,1736664664932,-500.0,0.0001062,2]
[348601070,1736664664942,-500.0,0.0001062,2]
[348601071,1736664664951,-548.46,0.0001062,2]
[348601072,1736664664961,-547.4,0.0001062,2]
[348601073,1736664664971,-500.0,0.0001062,2]
[348601074,1736664664980,-500.0,0.0001062,2]
[348601075,1736664664989,-500.0,0.0001062,2]
[348601076,1736664664998,-675.88,0.0001062,2]
[348601077,1736664665008,-650.86,0.0001062,2]
[348601078,1736664665017,-500.0,0.0001062,2]
[348601079,1736664665026,-1193.16,0.0001062,2]
[348601080,1736664665036,-997.49,0.0001062,2]
[348601081,1736664665045,-1159.31,0.0001062,2]
[348601082,1736664665054,-1134.42,0.0001062,2]
[348601083,1736664665063,-500.0,0.0001062,2]
[348601084,1736664665073,-500.0,0.0001062,2]
[348601085,1736664665083,-500.0,0.0001062,2]
[348601086,1736664665092,-500.0,0.0001062,2]
[348601087,1736664665102,-1269.21,0.00010621,2]
[348601088,1736664665111,-1539.8,0.00010621,2]
[348601089,1736664665120,-2152.61,0.00010621,2]
[348601090,1736664665130,-1641.08,0.00010621,2]
[348601091,1736664665138,-4400.86,0.00010621,2]
[348601092,1736664665147,-1857.78,0.00010621,2]
[348601093,1736664665156,-1640.18,0.00010621,2]
[348601094,1736664665165,-1754.42,0.00010621,2]
[348601095,1736664665175,-500.0,0.00010621,2]
[348601096,1736664665184,-931.4,0.00010621,2]
[348601097,1736664665193,-2541.55,0.00010621,2]
[348601098,1736664665203,-1064.63,0.00010621,2]
[348601099,1736664665212,-588.88,0.00010621,2]
[348601100,1736664665221,-500.0,0.00010621,2]
[348601101,1736664665229,-548.45,0.00010621,2]
[348601102,1736664665238,-744.22,0.00010621,2]
[348601103,1736664665247,-975.25,0.00010621,2]
[348601104,1736664665256,-547.93,0.00010621,2]
[348601105,1736664665265,-500.0,0.00010621,2]
[348601106,1736664665274,-500.0,0.00010621,2]
[348601107,1736664665283,-500.0,0.00010621,2]
[348601108,1736664665292,-887.09,0.00010621,2]
[348601109,1736664665302,-841.19,0.00010621,2]
[348601110,1736664665315,-517.67,0.00010621,2]
[348601111,1736664665324,-618.36,0.00010621,2]
[348601112,1736664665334,-514.96,0.00010621,2]
[348601113,1736664665344,-500.0,0.00010621,2]
[348601114,1736664665353,-787.46,0.00010621,2]
[348601115,1736664665363,-500.0,0.00010621,2]
[348601116,1736664665372,-817.76,0.00010621,2]
[348601117,1736664665382,-642.31,0.00010621,2]
[348601118,1736664665391,-571.13,0.00010621,2]
[348601119,1736664665401,-1433.18,0.00010621,2]
[348601120,1736664665409,-681.74,0.00010621,2]
[348601121,1736664665418,-500.0,0.00010621,2]
[348601122,1736664665427,-500.0,0.00010621,2]
[348601123,1736664665437,-681.36,0.00010621,2]
[348601124,1736664665445,-578.92,0.00010621,2]
[348601125,1736664665454,-500.0,0.00010621,2]
[348601126,1736664665464,-500.0,0.00010621,2]
[348601127,1736664665472,-1081.82,0.00010621,2]
[348601128,1736664665481,-902.17,0.00010621,2]
[348601129,1736664665490,-605.76,0.00010621,2]
[348601130,1736664665501,-987.81,0.00010621,2]
[348601131,1736664665511,-968.71,0.00010621,2]
[348601132,1736664665522,-1422.22,0.00010621,2]
[348601133,1736664665534,-500.0,0.00010621,2]
[348601134,1736664665544,-1801.64,0.00010621,2]
[348601135,1736664665556,-1095.44,0.00010621,2]
[348601136,1736664665566,-500.0,0.00010621,2]
[348601137,1736664665577,-3008.74,0.00010621,2]
[348601138,1736664665586,-532.72,0.00010621,2]
[348601139,1736664665596,-1648.63,0.00010621,2]
[348601140,1736664665605,-759.39,0.00010621,2]
[348601141,1736664665616,-4646.92,0.00010621,2]
[348601142,1736664665625,-500.0,0.00010621,2]
[348601143,1736664665635,-500.0,0.00010621,2]
[348601144,1736664665645,-1847.16,0.00010621,2]
[348601145,1736664665654,-1022.78,0.00010621,2]
[348601146,1736664665666,-500.0,0.00010621,2]
[348601147,1736664665675,-2692.34,0.00010621,2]
[348601148,1736664665684,-1315.25,0.00010621,2]
[348601149,1736664665694,-7347.54,0.00010621,2]
[348601150,1736664665704,-2014.49,0.00010621,2]
[348601151,1736664665714,-500.0,0.00010621,2]
[348601152,1736664665724,-1247.03,0.00010621,2]
[348601153,1736664665733,-500.0,0.00010621,2]
[348601154,1736664665743,-1000.0,0.00010621,2]
[348601155,1736664665752,-1027.93,0.00010621,2]
[348601156,1736664665762,-1392.43,0.00010621,2]
[348601157,1736664665771,-2287.88,0.00010621,2]
[348601158,1736664665781,-888.82,0.00010621,2]
[348601159,1736664665791,-500.0,0.00010621,2]
[348601160,1736664665800,-1223.56,0.00010621,2]
[348601161,1736664665809,-2751.8,0.00010621,2]
[348601162,1736664665819,-1517.85,0.00010643,2]
[348601163,1736664665829,-1831.45,0.00010643,2]
[348601164,1736664665840,-1262.15,0.00010643,2]
[348601165,1736664665849,-2965.78,0.00010643,2]
[348601166,1736664665858,-1672.59,0.00010643,2]
[348601167,1736664665868,-3495.27,0.00010643,2]
[348601168,1736664665877,-150.0,0.00010658,2]
[348601169,1736664665887,-871.92,0.00010658,2]
[348601170,1736664665896,-150.0,0.00010658,2]
[348601171,1736664665906,-150.0,0.00010658,2]
[348601172,1736664665915,-2595.68842146,0.00010672,2]
[348601173,1736664665924,-500.0,0.00010684,2]
[348601174,1736664665934,-915.8,0.00010693,2]
[348601175,1736664665943,-500.0,0.00010693,2]
[348601176,1736664665953,-1218.5,0.00010693,2]
[348601177,1736664665962,-151.86351427,0.00010695,2]
[348601178,1736664665971,-256.56029317,0.000107,2]
[348601179,1736664665980,-500.0,0.0001072,2]
[348601180,1736664665990,-378.01106759,0.00010739,2]
[348601181,1736664665999,-2595.68842146,0.0001079,2]
[348601182,1736664666008,-151.86351427,0.00010795,2]
[348601183,1736664666017,-1900.0,0.000108,3]
[348601184,1736664666027,-1000.0,0.00010815,2]
[348601185,1736664666037,-500.0,0.00010821,2]
[348601186,1736664666047,-753.808117,0.00010885,2]
[348601187,1736664666057,-3000.0,0.0001089,2]
[348601188,1736664666067,-1492.92,0.00010892,2]
[348601189,1736664666078,-500.0,0.00010892,2]
[348601190,1736664666088,-1187.17,0.00010892,2]
[348601191,1736664666097,-423.51312942,0.00010892,2]
[348601192,1736664666108,-500.0,0.00010892,2]
[348601193,1736664666120,-500.0,0.00010892,2]
[348601194,1736664666131,-500.0,0.00010892,2]
[348601195,1736664666141,-500.0,0.00010892,2]
[348601196,1736664666150,-993.35,0.00010892,2]
[348601197,1736664666160,-500.0,0.00010892,2]
[348601198,1736664666169,-500.0,0.00010892,2]
[348601199,1736664666180,-500.0,0.00010892,2]
[348601200,1736664666192,-1104.38,0.00010892,2]
[348601201,1736664666201,-500.0,0.00010892,2]
[348601202,1736664666212,-500.0,0.00010892,2]
[348601203,1736664666221,-500.0,0.00010892,2]
[348601204,1736664666230,-1369.53,0.00010892,2]
[348601205,1736664666239,-1498.73,0.00010892,2]
[348601206,1736664666248,-3063.74,0.00010892,2]
[348601207,1736664666257,-2233.87,0.00010892,2]
[348601208,1736664666266,-500.0,0.00010892,2]
[348601209,1736664666275,-500.0,0.00010892,2]
[348601210,1736664666284,-992.88,0.00010892,2]
[348601211,1736664666293,-500.0,0.00010892,2]
[348601212,1736664666302,-500.0,0.00010892,2]
[348601213,1736664666315,-1018.01,0.00010892,2]
[348601214,1736664666324,-1456.79,0.00010892,2]
[348601215,1736664666333,-2026.96,0.00010892,2]
[348601216,1736664666342,-500.0,0.00010892,2]
[348601217,1736664666351,-2633.29,0.00010892,2]
[348601218,1736664666361,-500.0,0.00010892,2]
[348601219,1736664666370,-500.0,0.00010892,2]
[348601220,1736664666379,-500.0,0.00010892,2]
[348601221,1736664666390,-500.0,0.00010892,2]
[348601222,1736664666399,-2706.37,0.00010892,2]
[348601223,1736664666408,-567.92,0.00010892,2]
[348601224,1736664666417,-2579.55,0.00010892,2]
[348601225,1736664666427,-500.0,0.00010892,2]
[348601226,1736664666436,-1594.75,0.00010892,2]
[348601227,1736664666446,-500.0,0.00010892,2]
[348601228,1736664666457,-500.0,0.00010892,2]
[348601229,1736664666467,-3805.02,0.00010892,2]
[348601230,1736664666479,-500.0,0.00010892,2]
[348601231,1736664666489,-2233.36,0.00010892,2]
[348601232,1736664666499,-1039.96,0.00010892,2]
[348601233,1736664666508,-2126.05,0.00010892,2]
[348601234,1736664666518,-500.0,0.00010892,2]
[348601235,1736664666527,-1541.53,0.00010892,2]
[348601236,1736664666537,-2279.39,0.00010892,2]
[348601237,1736664666548,-2963.62,0.00010892,2]
[348601238,1736664666558,-500.0,0.00010892,2]
[348601239,1736664666568,-565.56,0.00010892,2]
[348601240,1736664666577,-500.0,0.00010892,2]
[348601241,1736664666587,-1710.43,0.00010892,2]
[348601242,1736664666595,-913.706464,0.00010892,2]
[348601243,1736664666605,-500.0,0.00010892,2]
[348601244,1736664666615,-500.0,0.00010892,2]
[348601245,1736664666624,-1287.27,0.00010892,2]
[348601246,1736664666634,-1149.0,0.00010892,2]
[348601247,1736664666643,-1405.71,0.00010892,2]
[348601248,1736664666652,-3904.14,0.00010892,2]
[348601249,1736664666661,-500.0,0.00010893,2]
[348601250,1736664666670,-500.0,0.00010893,2]
[348601251,1736664666679,-500.0,0.00010893,2]
[348601252,1736664666689,-500.0,0.00010893,2]
[348601253,1736664666698,-1103.95,0.00010893,2]
[348601254,1736664666707,-867.85,0.00010893,2]
[348601255,1736664666718,-763.15,0.00010893,2]
[348601256,1736664666728,-960.97,0.00010893,2]
[348601257,1736664666737,-644.23,0.00010893,2]
[348601258,1736664666746,-500.0,0.00010893,2]
[348601259,1736664666755,-500.0,0.00010893,2]
[348601260,1736664666764,-500.0,0.00010893,2]
[348601261,1736664666775,-500.0,0.00010893,2]
[348601262,1736664666784,-500.0,0.00010893,2]
[348601263,1736664666794,-754.45,0.00010893,2]
[348601264,1736664666803,-500.0,0.00010893,2]
[348601265,1736664666812,-500.0,0.00010893,2]
[348601266,1736664666821,-928.85,0.00010893,2]
[348601267,1736664666830,-987.87,0.00010893,2]
[348601268,1736664666839,-500.0,0.00010893,2]
[348601269,1736664666849,-851.53,0.00010893,2]
[348601270,1736664666858,-500.0,0.00010893,2]
[348601271,1736664666867,-327.06770995,0.00010893,2]
[348601272,1736664666877,-500.0,0.00010893,2]
[348601273,1736664666886,-500.0,0.00010893,2]
[348601274,1736664666895,-500.0,0.00010893,2]
[348601275,1736664666904,-500.0,0.00010893,2]
[348601276,1736664666913,-519.07,0.00010893,2]
[348601277,1736664666923,-1014.03,0.00010893,2]
[348601278,1736664666932,-500.0,0.00010893,2]
[348601279,1736664666942,-500.0,0.00010893,2]
[348601280,1736664666951,-674.28,0.00010893,2]
[348601281,1736664666960,-500.0,0.00010893,2]
[348601282,1736664666969,-757.73,0.00010893,2]
[348601283,1736664666979,-963.18,0.00010893,2]
[348601284,1736664666989,-500.0,0.00010893,2]
[348601285,1736664666999,-500.0,0.00010893,2]
[348601286,1736664667008,-1070.9,0.00010893,2]
[348601287,1736664667018,-536.18,0.00010893,2]
[348601288,1736664667027,-774.11,0.00010893,2]
[348601289,1736664667036,-500.0,0.00010893,2]
[348601290,1736664667046,-1118.47,0.00010893,2]
[348601291,1736664667055,-500.0,0.00010893,2]
[348601292,1736664667064,-500.0,0.00010893,2]
[348601293,1736664667074,-500.0,0.00010893,2]
[348601294,1736664667083,-500.0,0.00010893,2]
[348601295,1736664667092,-500.0,0.00010893,2]
[348601296,1736664667102,-500.0,0.00010893,2]
[348601297,1736664667111,-500.0,0.00010893,2]
[348601298,1736664667120,-907.73,0.00010893,2]
[348601299,1736664667129,-579.44,0.00010893,2]
[348601300,1736664667138,-500.0,0.00010893,2]
[348601301,1736664667147,-500.0,0.00010893,2]
[348601302,1736664667157,-979.31,0.00010893,2]
[348601303,1736664667166,-794.38,0.00010893,2]
[348601304,1736664667175,-500.0,0.00010893,2]
[348601305,1736664667184,-500.0,0.00010893,2]
[348601306,1736664667193,-536.53,0.00010893,2]
[348601307,1736664667203,-767.51,0.00010893,2]
[348601308,1736664667212,-941.36,0.00010893,2]
[348601309,1736664667222,-530.16,0.00010893,2]
[348601310,1736664667231,-838.4,0.00010893,2]
[348601311,1736664667240,-644.62,0.00010893,2]
[348601312,1736664667250,-787.08,0.00010893,2]
[348601313,1736664667259,-1673.52,0.00010893,2]
[348601314,1736664667268,-751.08,0.00010893,2]
[348601315,1736664667278,-500.0,0.00010893,2]
[348601316,1736664667287,-1047.84,0.00010893,2]
[348601317,1736664667296,-601.24,0.00010893,2]
[348601318,1736664667306,-1068.86,0.00010893,2]
[348601319,1736664667316,-500.0,0.00010893,2]
[348601320,1736664667325,-576.26,0.00010893,2]
[348601321,1736664667339,-5257.85,0.00010893,2]
[348601322,1736664667349,-559.88,0.00010893,2]
[348601323,1736664667358,-1084.38,0.00010893,2]
[348601324,1736664667367,-500.0,0.00010893,2]
[348601325,1736664667378,-760.69,0.00010893,2]
[348601326,1736664667387,-568.9,0.00010893,2]
[348601327,1736664667395,-3254.33,0.00010893,2]
[348601328,1736664667404,-1239.06,0.00010893,2]
[348601329,1736664667414,-3894.03,0.00010893,2]
[348601330,1736664667423,-472.86406022,0.00010893,2]
[348601331,1736664667433,-500.0,0.00010893,2]
[348601332,1736664667442,-675.02,0.00010893,2]
[348601333,1736664667451,-619.14,0.00010893,2]
[348601334,1736664667460,-748.84,0.00010893,2]
[348601335,1736664667469,-684.35,0.00010893,2]
[348601336,1736664667478,-3424.7,0.00010893,2]
[348601337,1736664667487,-501.81,0.00010893,2]
[348601338,1736664667496,-500.0,0.00010894,2]
[348601339,1736664667505,-500.0,0.00010894,2]
[348601340,1736664667515,-554.75,0.00010894,2]
[348601341,1736664667523,-500.0,0.00010894,2]
[348601342,1736664667533,-500.0,0.00010894,2]
[348601343,1736664667542,-500.0,0.00010894,2]
[348601344,1736664667551,-500.0,0.00010894,2]
[348601345,1736664667560,-500.0,0.00010894,2]
[348601346,1736664667569,-500.0,0.00010894,2]
[348601347,1736664667578,-556.88,0.00010894,2]
[348601348,1736664667588,-547.83067633,0.00010894,2]
[348601349,1736664667597,-500.0,0.00010894,2]
[348601350,1736664667606,-500.0,0.00010894,2]
[348601351,1736664667615,-586.89,0.00010894,2]
[348601352,1736664667624,-500.0,0.00010894,2]
[348601353,1736664667633,-622.31,0.00010894,2]
[348601354,1736664667642,-500.0,0.00010894,2]
[348601355,1736664667651,-500.0,0.00010894,2]
[348601356,1736664667660,-500.0,0.00010894,2]
[348601357,1736664667670,-500.0,0.00010894,2]
[348601358,1736664667679,-500.0,0.00010894,2]
[348601359,1736664667688,-500.0,0.00010894,2]
[348601360,1736664667697,-500.0,0.00010894,2]
[348601361,1736664667707,-500.0,0.00010894,2]
[348601362,1736664667718,-457.9884251,0.00010894,2]
[348601363,1736664667728,-546.49,0.00010894,2]
[348601364,1736664667737,-500.0,0.00010894,2]
[348601365,1736664667746,-500.0,0.00010894,2]
[348601366,1736664667755,-500.0,0.00010894,2]
[348601367,1736664667764,-838.7,0.00010894,2]
[348601368,1736664667773,-500.0,0.00010894,2]
[348601369,1736664667782,-334.0424685,0.00010894,2]
[348601370,1736664667792,-780.02,0.00010894,2]
[348601371,1736664667928,-500.0,0.00010894,2]
[348601372,1736664667956,-500.0,0.00010894,2]
[348601373,1736664667965,-500.0,0.00010894,2]
[348601374,1736664667975,-602.09012762,0.00010894,2]
[348601375,1736664667984,-500.0,0.00010894,2]
[348601376,1736664667993,-931.1,0.00010894,2]
[348601377,1736664668005,-795.37,0.00010894,2]
[348601378,1736664668014,-542.74,0.00010894,2]
[348601379,1736664668023,-806.97,0.00010894,2]
[348601380,1736664668033,-500.0,0.00010894,2]
[348601381,1736664668043,-661.93,0.00010894,2]
[348601382,1736664668052,-886.02,0.00010894,2]
[348601383,1736664668061,-500.0,0.00010894,2]
[348601384,1736664668070,-500.0,0.00010894,2]
[348601385,1736664668079,-623.08,0.00010894,2]
[348601386,1736664668088,-607.44,0.00010894,2]
[348601387,1736664668098,-500.0,0.00010894,2]
[348601388,1736664668107,-500.0,0.00010894,2]